fUSD/lending_fUSD_20250206
["ID","MTS","AMOUNT","RATE_DAILY","PERIOD"]
[351832169,1738806642389,-517.25531118,0.00020172,4]
[351832171,1738806642399,-502.51348251,0.00020172,4]
[351832173,1738806642411,-503.6534978,0.00020172,4]
[351832175,1738806642424,-524.59860003,0.00020172,4]
[351832177,1738806642433,-524.04619372,0.00020172,4]
[351832179,1738806642442,-526.79452337,0.00020172,4]
[351832181,1738806642452,-510.58606133,0.00020172,4]
[351832183,1738806642461,-506.80603054,0.00020172,4]
[351832185,1738806642471,-500.0,0.00020172,4]
[351832187,1738806642481,-500.0,0.00020172,4]
[351832189,1738806642490,-500.0,0.00020172,4]
[351832191,1738806642500,-500.0,0.00020172,4]
[351832193,1738806642510,-500.0,0.00020172,4]
[351832195,1738806642519,-500.0,0.00020172,4]
[351832196,1738806642528,-500.0,0.00020172,4]
[351832198,1738806642538,-518.02332103,0.00020172,4]
[351832200,1738806642547,-507.66220526,0.00020172,4]
[351832202,1738806642558,-510.7631959,0.00020172,4]
[351832205,1738806642568,-504.1679292,0.00020172,4]
[351832206,1738806642578,-500.0,0.00020172,4]
[351832208,1738806642587,-500.0,0.00020172,4]
[351832210,1738806642597,-500.0,0.00020172,4]
[351832212,1738806642607,-514.04191447,0.00020172,4]
[351832214,1738806642616,-500.0,0.00020172,4]
[351832216,1738806642626,-500.0,0.00020172,4]
[351832218,1738806642636,-500.0,0.00020172,4]
[351832221,1738806642649,-500.0,0.00020172,4]
[351832222,1738806642658,-505.4041061,0.00020172,4]
[351832224,1738806642668,-284.73603167,0.00020172,4]
[351832226,1738806642678,-500.0,0.00020172,4]
[351832228,1738806642687,-511.59520429,0.00020172,4]
[351832230,1738806642698,-500.0,0.00020172,4]
[351832232,1738806642708,-500.0,0.00020173,2]
[351832234,1738806642720,-854.57,0.00020173,4]
[351832236,1738806642730,-854.57,0.00020173,4]
[351832238,1738806642739,-854.57,0.00020173,4]
[351832240,1738806642751,-854.57,0.00020173,4]
[351832242,1738806642761,-854.57,0.00020173,4]
[351832244,1738806642770,-854.57,0.00020173,4]
[351832246,1738806642780,-854.57,0.00020173,4]
[351832248,1738806642792,-854.57,0.00020173,4]
[351832251,1738806642801,-854.57,0.00020173,4]
[351832265,1738806642914,-854.57,0.00020173,4]
[351832267,1738806642924,-854.57,0.00020173,4]
[351832269,1738806642934,-854.57,0.00020173,4]
[351832271,1738806642944,-854.57,0.00020173,4]
[351832273,1738806642953,-854.57,0.00020173,4]
[351832275,1738806642963,-854.57,0.00020173,4]
[351832277,1738806642972,-854.57,0.00020173,4]
[351832279,1738806642982,-854.57,0.00020173,4]
[351832281,1738806642991,-854.57,0.00020173,4]
[351832283,1738806643000,-854.57,0.00020173,4]
[351832285,1738806643009,-854.57,0.00020173,4]
[351832287,1738806643019,-854.57,0.00020173,4]
[351832289,1738806643028,-854.57,0.00020173,4]
[351832291,1738806643038,-854.61100229,0.00020173,4]
[351832293,1738806643047,-421.22798426,0.00020173,4]
[351832295,1738806643056,-204.67117003,0.00020173,4]
[351832297,1738806643066,-242.87518274,0.00020173,4]
[351832299,1738806643076,-500.0,0.00020173,2]
[351832301,1738806643085,-500.0,0.00020173,2]
[351832303,1738806643095,-500.0,0.00020173,2]
[351832305,1738806643104,-500.0,0.00020173,2]
[351832307,1738806643113,-528.49426867,0.00020173,2]
[351832309,1738806643122,-506.55745759,0.00020173,4]
[351832311,1738806643131,-506.69278425,0.00020173,4]
[351832313,1738806643143,-509.2847278,0.00020173,4]
[351832315,1738806643153,-510.97650462,0.00020173,4]
[351832317,1738806643162,-504.33240458,0.00020173,4]
[351832319,1738806643171,-621.63539802,0.00020173,4]
[351832321,1738806643181,-180.2571036,0.00020173,4]
[351832323,1738806643190,-500.0,0.00020173,4]
[351832325,1738806643199,-255.94058017,0.00020173,4]
[351832327,1738806643208,-503.34238413,0.00020173,4]
[351832329,1738806643218,-500.0,0.00020173,4]
[351832331,1738806643228,-259.37979992,0.00020173,4]
[351832333,1738806643237,-315.15161337,0.00020173,4]
[351832335,1738806643246,-500.0,0.00020173,4]
[351832337,1738806643256,-500.0,0.00020173,4]
[351832339,1738806643267,-508.34095714,0.00020173,4]
[351832341,1738806643276,-500.0,0.00020173,4]
[351832343,1738806643285,-516.6206363,0.00020173,4]
[351832345,1738806643294,-500.0,0.00020173,4]
[351832347,1738806643303,-500.0,0.00020173,4]
[351832349,1738806643314,-500.0,0.00020173,4]
[351832351,1738806643323,-500.0,0.00020173,4]
[351832353,1738806643332,-221.13196692,0.00020173,4]
[351832355,1738806643341,-280.02118962,0.00020173,4]
[351832357,1738806643350,-500.0,0.00020173,4]
[351832359,1738806643360,-500.0,0.00020173,4]
[351832361,1738806643369,-500.0,0.00020173,4]
[351832363,1738806643378,-554.20903458,0.00020173,4]
[351832365,1738806643388,-500.0,0.00020173,4]
[351832367,1738806643399,-550.3641407,0.00020173,4]
[351832369,1738806643409,-1323.95,0.00020173,2]
[351832371,1738806643418,-500.0,0.00020173,4]
[351832373,1738806643427,-446.3317366,0.00020173,4]
[351832375,1738806643436,-592.8185056,0.00020173,4]
[351832377,1738806643446,-509.97712914,0.00020173,4]
[351832379,1738806643458,-500.0,0.00020173,4]
[351832381,1738806643467,-173.04178116,0.00020173,4]
[351832383,1738806643476,-509.79792142,0.00020173,4]
[351832385,1738806643486,-630.43354474,0.00020173,4]
[351832387,1738806643495,-624.98730632,0.00020173,4]
[351832389,1738806643504,-500.0,0.00020173,4]
[351832391,1738806643514,-500.0,0.00020173,4]
[351832393,1738806643523,-514.98308699,0.00020173,4]
[351832395,1738806643532,-500.0,0.00020173,4]
[351832397,1738806643542,-500.0,0.00020173,4]
[351832399,1738806643551,-500.0,0.00020173,4]
[351832401,1738806643562,-500.0,0.00020173,4]
[351832403,1738806643572,-500.0,0.00020173,4]
[351832405,1738806643583,-412.5534473,0.00020173,4]
[351832407,1738806643592,-500.0,0.00020173,4]
[351832409,1738806643602,-500.0,0.00020173,4]
[351832411,1738806643611,-500.0,0.00020173,4]
[351832413,1738806643621,-500.0,0.00020173,4]
[351832415,1738806643630,-500.0,0.00020173,4]
[351832417,1738806643640,-500.0,0.00020173,4]
[351832419,1738806643654,-398.12616397,0.00020173,4]
[351832421,1738806643664,-500.0,0.00020173,4]
[351832423,1738806643673,-500.0,0.00020173,4]
[351832425,1738806643683,-493.04992498,0.00020173,4]
[351832427,1738806643692,-500.0,0.00020173,4]
[351832429,1738806643702,-500.0,0.00020173,4]
[351832431,1738806643714,-500.0,0.00020173,4]
[351832433,1738806643724,-500.0,0.00020173,4]
[351832435,1738806643733,-500.0,0.00020173,4]
[351832437,1738806643742,-500.0,0.00020173,4]
[351832439,1738806643751,-500.0,0.00020173,4]
[351832440,1738806643761,-500.0,0.00020173,4]
[351832442,1738806643770,-500.0,0.00020173,4]
[351832444,1738806643779,-500.0,0.00020173,4]
[351832446,1738806643790,-632.02110721,0.00020173,4]
[351832449,1738806643799,-500.0,0.00020173,4]
[351832451,1738806643809,-500.0,0.00020173,4]
[351832453,1738806643819,-500.0,0.00020173,4]
[351832455,1738806643829,-500.0,0.00020173,4]
[351832456,1738806643838,-500.0,0.00020173,4]
[351832459,1738806643848,-533.36643821,0.00020173,4]
[351832461,1738806643857,-500.0,0.00020173,4]
[351832462,1738806643866,-511.72303753,0.00020173,4]
[351832464,1738806643875,-79225.44986396,0.00020173,2]
[351832467,1738806643886,-130515.68048713,0.00020174,30]
[351832469,1738806643897,-315.03843495,0.00020174,120]
[351832470,1738806643906,-1961.18912176,0.00020174,5]
[351832472,1738806643915,-695.64399587,0.00020174,10]
[351832474,1738806643924,-403.15093836,0.00020174,30]
[351832476,1738806643933,-4066490.14419849,0.00020174,30]
[351832478,1738806643943,-253956.03495323,0.00020174,30]
[351832481,1738806643952,-344.56835252,0.00020174,2]
[351832482,1738806643961,-208920.39265246,0.00020174,30]
[351832485,1738806643971,-210.29357938,0.00020174,7]
[351832486,1738806643980,-7795.84695962,0.00020174,7]
[351832488,1738806643990,-611.29331537,0.00020174,6]
[351832490,1738806643999,-1011.53908684,0.00020174,15]
[351832492,1738806644008,-1375.90921136,0.00020174,10]
[351832494,1738806644018,-753.47535371,0.00020174,2]
[351832496,1738806644027,-1319.20966699,0.00020174,120]
[351832498,1738806644036,-1504.44576914,0.00020174,2]
[351832500,1738806644045,-235.07747506,0.00020174,120]
[351832503,1738806644055,-415339.42723802,0.00020174,2]
[351832505,1738806644064,-1018.52465303,0.00020174,2]
[351832507,1738806644073,-5128.46832445,0.00020174,2]
[351832508,1738806644083,-597.06540768,0.00020174,120]
[351832511,1738806644093,-523.63606432,0.00020174,7]
[351832513,1738806644102,-2428.93110268,0.00020174,2]
[351832514,1738806644111,-300.0,0.00020174,15]
[351832516,1738806644120,-80059.64404309,0.00020174,2]
[351832518,1738806644129,-2383.57173719,0.00020174,120]
[351832521,1738806644139,-213292.10396599,0.00020174,2]
[351832523,1738806644150,-150.28700133,0.00020174,2]
[351832524,1738806644159,-964.55487147,0.00020174,5]
[351832527,1738806644169,-5019.80882627,0.00020174,2]
[351832529,1738806644178,-327.28725542,0.00020174,90]
[351832531,1738806644187,-2241.90643459,0.00020174,14]
[351832532,1738806644197,-246.50081637,0.00020174,2]
[351832534,1738806644206,-162.64355675,0.00020174,2]
[351832536,1738806644216,-861.92232915,0.00020174,5]
[351832538,1738806644226,-1248.39053839,0.00020174,2]
[351832540,1738806644235,-207.27285598,0.00020174,60]
[351832543,1738806644244,-7637.73587063,0.00020174,2]
[351832544,1738806644254,-51992.91610937,0.00020174,30]
[351832547,1738806644263,-22814.71653076,0.00020174,120]
[351832548,1738806644272,-1223.03565687,0.00020174,15]
[351832550,1738806644281,-2209.96234237,0.00020174,10]
[351832552,1738806644291,-180.24965808,0.00020174,2]
[351832555,1738806644301,-1030.45047804,0.00020174,2]
[351832557,1738806644313,-584.643745,0.00020174,5]
[351832558,1738806644324,-9594.25608728,0.00020174,2]
[351832560,1738806644333,-588.51293736,0.00020174,2]
[351832562,1738806644342,-213602.21887268,0.00020174,120]
[351832564,1738806644352,-9141.47857384,0.00020174,2]
[351832566,1738806644361,-1297.75910965,0.00020174,2]
[351832568,1738806644371,-2240.11638581,0.00020174,10]
[351832570,1738806644380,-1000.0,0.00020174,10]
[351832572,1738806644389,-3384.859558,0.00020174,2]
[351832574,1738806644399,-20583.70724742,0.00020174,7]
[351832576,1738806644409,-4361.83827114,0.00020174,7]
[351832578,1738806644427,-204.76041046,0.00020174,30]
[351832580,1738806644438,-22554.14542823,0.00020174,2]
[351832582,1738806644447,-12702.05958817,0.00020174,2]
[351832584,1738806644459,-1901.57580763,0.00020174,2]
[351832586,1738806644469,-182.16501923,0.00020174,2]
[351832588,1738806644479,-14689.92138763,0.00020174,3]
[351832590,1738806644488,-643.0,0.00020174,2]
[351832592,1738806644498,-5261.45560601,0.00020174,4]
[351832594,1738806644508,-960.2776656,0.00020174,2]
[351832596,1738806644517,-15279.33318983,0.00020174,10]
[351832598,1738806644526,-9543.94558396,0.00020174,2]
[351832600,1738806644535,-167.49066158,0.00020174,120]
[351832602,1738806644545,-500.0,0.00020174,10]
[351832604,1738806644555,-18679.40023478,0.00020174,5]
[351832606,1738806644564,-25087.55494837,0.00020174,2]
[351832608,1738806644573,-12729.6387914,0.00020174,30]
[351832610,1738806644583,-567.17406977,0.00020174,2]
[351832612,1738806644592,-51399.73112447,0.00020174,30]
[351832614,1738806644602,-1818.70984296,0.00020174,2]
[351832616,1738806644611,-3211.42747722,0.00020174,2]
[351832618,1738806644620,-173.65084069,0.00020174,2]
[351832620,1738806644630,-152.80861905,0.00020174,2]
[351832622,1738806644639,-60990.58445399,0.00020174,10]
[351832624,1738806644650,-10562.71386169,0.00020174,15]
[351832626,1738806644660,-7016.12740406,0.00020174,2]
[351832627,1738806644669,-51047.40924616,0.00020174,7]
[351832628,1738806644678,-550.0,0.00020174,2]
[351832629,1738806644687,-1451.97928204,0.00020174,2]
[351832630,1738806644696,-998.11223689,0.00020174,2]
[351832631,1738806644706,-1022.13766792,0.00020174,7]
[351832632,1738806644716,-945.21558684,0.00020174,2]
[351832633,1738806644727,-10599.60160994,0.00020174,2]
[351832634,1738806644736,-168031.54444435,0.00020174,2]
[351832635,1738806644745,-14796.60547899,0.00020174,2]
[351832636,1738806644754,-826.49454595,0.00020174,120]
[351832637,1738806644764,-226.6284731,0.00020174,2]
[351832638,1738806644773,-171.99259429,0.00020174,2]
[351832639,1738806644783,-1266.93293908,0.00020174,4]
[351832640,1738806644792,-6000.0,0.00020174,2]
[351832641,1738806644800,-371.61831817,0.00020174,2]
[351832642,1738806644809,-1455.63817187,0.00020174,2]
[351832644,1738806644818,-1022.9843446,0.00020174,2]
[351832646,1738806644828,-457.84419577,0.00020174,7]
[351832648,1738806644837,-8549.09559921,0.00020174,2]
[351832658,1738806644925,-1037.3081368,0.00020174,2]
[351832661,1738806644937,-342.45445897,0.00020174,2]
[351832663,1738806644947,-365.09065817,0.00020174,7]
[351832665,1738806644958,-4630.78159806,0.00020174,7]
[351832667,1738806644968,-557.58420907,0.00020174,2]
[351832669,1738806644978,-150.0,0.00020174,2]
[351832671,1738806644987,-7697.53372402,0.00020174,2]
[351832673,1738806644996,-223.47581895,0.00020174,30]
[351832675,1738806645006,-601.09290017,0.00020174,2]
[351832677,1738806645015,-620.11036775,0.00020174,2]
[351832679,1738806645024,-216.01404924,0.00020174,5]
[351832680,1738806645033,-212.57817375,0.00020174,2]
[351832683,1738806645043,-28821.28438475,0.00020174,2]
[351832687,1738806645080,-500.0,0.00020172,4]
[351832689,1738806645090,-24783.45349181,0.00020174,2]
[351832692,1738806645101,-919.99639479,0.00020174,2]
[351832694,1738806645112,-709.19319194,0.00020174,2]
[351832696,1738806645124,-12034.848552,0.00020174,2]
[351833488,1738806690315,257.55,8.021e-05,2]
[351833492,1738807458876,190.49,0.0002,120]
[351833494,1738807606802,308.0,0.0002,120]
[351833496,1738807831978,-262.31603394,8.836e-05,2]
[351833497,1738807831990,-61.94666606,8.836e-05,2]
[351833498,1738807832000,-370.1,0.00010931,2]
[351833499,1738807832010,-20.0362929,0.00012764,2]
[351833500,1738807832021,-295.63804909,0.00012764,2]
[351833501,1738807832105,-55.04565801,0.00012764,2]
[351833502,1738807832120,-306.0,0.00013699,30]
[351833503,1738807832129,-510.50708589,0.00014056,2]
[351833504,1738807832143,-489.49291411,0.00014056,2]
[351833505,1738807832153,-966.74971355,0.00014056,2]
[351833506,1738807832163,-424.72,0.00016527,2]
[351833507,1738807832172,-856.37229695,0.0001701,2]
[351833508,1738807832183,-143.62770305,0.0001701,2]
[351833509,1738807832195,-300.0,0.0001701,2]
[351833510,1738807832204,-378.1,0.0001701,2]
[351833511,1738807832214,-377.73,0.0001701,2]
[351833512,1738807832223,-381.87,0.0001701,2]
[351833513,1738807832232,-6.02813392,0.0001701,2]
[351833514,1738807832243,-367.25186608,0.0001701,2]
[351833515,1738807832252,-380.99,0.0001701,2]
[351833516,1738807832261,-378.78,0.00017011,2]
[351833517,1738807832271,-375.22,0.00017011,2]
[351833518,1738807832281,-371.04,0.00017011,2]
[351833519,1738807832290,-124.81944844,0.00017011,2]
[351833520,1738807832302,-247.86055156,0.00017011,2]
[351833521,1738807832311,-377.81,0.00017011,2]
[351833522,1738807832320,-376.07,0.00017011,2]
[351833523,1738807832331,-381.11,0.00017011,2]
[351833524,1738807832340,-375.88,0.00017011,2]
[351833525,1738807832349,-377.1,0.00017011,2]
[351833526,1738807832359,-370.48,0.00017011,2]
[351833527,1738807832368,-158.31584199,0.00018148,2]
[351833528,1738807832379,-200.0,0.00018321,2]
[351833529,1738807832388,-137.42009659,0.00018445,2]
[351833530,1738807832400,-627.65645632,0.00018445,2]
[351833531,1738807832412,-234.92344709,0.00018445,2]
[351833532,1738807832422,-206.47,0.00018471,2]
[351833533,1738807832433,-200.0,0.00018484,2]
[351833534,1738807832448,-1000.0,0.00018536,2]
[351833535,1738807832462,-876.49,0.0001866,30]
[351833536,1738807832473,-163.01,0.00018682,2]
[351833537,1738807832483,-129.42212646,0.00018755,2]
[351833644,1738807838001,-53.44787354,0.00018755,2]
[351833645,1738807838011,-424.72,0.00018791,2]
[351833646,1738807838021,-201.85,0.00018795,2]
[351833647,1738807838031,-183.92,0.00018954,2]
[351833648,1738807838041,-150.0,0.00018954,2]
[351833649,1738807838051,-150.0,0.00019178,2]
[351833650,1738807838061,-260.36018398,0.00019226,2]
[351833651,1738807838074,-1077.63981602,0.00019226,2]
[351833652,1738807838084,-400.0,0.000194,7]
[351833653,1738807838095,-381.36,0.000194,2]
[351833654,1738807838105,-369.99,0.000194,2]
[351833655,1738807838118,-378.54,0.000194,2]
[351833656,1738807838129,-368.35,0.00019401,2]
[351833657,1738807838139,-815.58832626,0.00019401,2]
[351833658,1738807838150,-294.65099435,0.00019401,2]
[351833659,1738807838163,-295.08967939,0.00019401,2]
[351833660,1738807838173,-142.61975396,0.00019401,2]
[351833661,1738807838185,-239.77024604,0.00019401,2]
[351833662,1738807838196,-154.48763894,0.00019401,2]
[351833663,1738807838205,-376.27,0.00019402,2]
[351833664,1738807838216,-374.29,0.00019403,2]
[351833665,1738807838226,-373.47,0.00019406,2]
[351833666,1738807838235,-1338.0,0.00019424,2]
[351833667,1738807838245,-370.71,0.00019437,2]
[351833668,1738807838254,-371.76,0.00019467,2]
[351833669,1738807838264,-900.0,0.000195,7]
[351833670,1738807838274,-1300.0,0.000196,7]
[351833671,1738807838285,-1338.0,0.00019622,2]
[351833672,1738807838295,-150.0,0.00019683,2]
[351833673,1738807838305,-1800.0,0.000197,7]
[351833674,1738807838315,-300.0,0.00019785,2]
[351833675,1738807838324,-1757.86921818,0.000198,7]
[351833676,1738807838336,-442.13078182,0.000198,7]
[351833677,1738807838345,-1338.0,0.0001982,2]
[351833678,1738807838355,-400.0,0.000199,7]
[351833679,1738807838365,-373.48124476,0.00019964,2]
[351833680,1738807838375,-3729.81302,0.0001997,2]
[351833682,1738807838385,-1000.0,0.00019999,2]
[351833684,1738807838395,-196.19845585,0.00019999,2]
[351833686,1738807838405,-377.47,0.00019999,2]
[351833688,1738807838414,-381.96,0.0002,2]
[351833690,1738807838424,-2842.49,0.0002,2]
[351833692,1738807838433,-500.0,0.0002,4]
[351833694,1738807838443,-500.0,0.0002,4]
[351833696,1738807838453,-521.42527903,0.0002,4]
[351833697,1738807838462,-500.0,0.0002,4]
[351833699,1738807838471,-152.45,0.0002,31]
[351833701,1738807838481,-152.45,0.0002,31]
[351833703,1738807838491,-152.45,0.0002,31]
[351833705,1738807838500,-152.45,0.0002,31]
[351833707,1738807838509,-152.45,0.0002,31]
[351833709,1738807838518,-152.45,0.0002,31]
[351833711,1738807838528,-152.45,0.0002,31]
[351833713,1738807838537,-500.0,0.0002,4]
[351833715,1738807838547,-500.0,0.0002,2]
[351833717,1738807838556,-500.0,0.0002,4]
[351833719,1738807838566,-465.08604647,0.0002,4]
[351833721,1738807838575,-513.79262347,0.0002,4]
[351833723,1738807838585,-1338.0,0.00020019,2]
[351833725,1738807838595,-8325.60098474,0.00020057,2]
[351833727,1738807838606,-476.81295156,0.00020057,2]
[351833729,1738807838617,-376.0213201,0.00020057,2]
[351833732,1738807838633,-370.87,0.00018787,2]
[351833734,1738807838643,-35300.16173022,0.00020057,2]
[351833736,1738807838651,-4023.0,0.00020062,2]
[351833738,1738807838661,-2137.85024768,0.00020081,2]
[351833741,1738807838670,-33937.0582658,0.00020117,2]
[351833744,1738807838679,-10873.51741514,0.00020161,2]
[351833747,1738807838688,-502.7836766,0.00020173,2]
[351833750,1738807838697,-401.07680175,0.00020173,4]
[351833753,1738807838707,-28572.05275469,0.00020174,2]
[351833756,1738807838715,-627.46682934,0.00020174,2]
[351833758,1738807838724,-255.6189075,0.0002018,4]
[351833760,1738807838734,-500.0,0.0002018,4]
[351833762,1738807838744,-174.21510534,0.0002018,4]
[351833763,1738807838753,-502.63498229,0.0002018,4]
[351833766,1738807838763,-526.00520104,0.0002018,4]
[351833767,1738807838772,-514.42875825,0.0002018,4]
[351833770,1738807838782,-515.65078288,0.0002018,4]
[351833771,1738807838792,-515.7476205,0.0002018,4]
[351833773,1738807838801,-521.29787728,0.0002018,4]
[351833775,1738807838810,-512.67052851,0.0002018,4]
[351833777,1738807838819,-502.17799971,0.0002018,4]
[351833779,1738807838829,-518.19432518,0.0002018,4]
[351833781,1738807838839,-519.10578552,0.0002018,4]
[351833783,1738807838849,-500.0,0.0002018,2]
[351833785,1738807838859,-512.17382485,0.0002018,4]
[351833787,1738807838868,-505.8705126,0.0002018,4]
[351833789,1738807838878,-511.85743221,0.0002018,4]
[351833791,1738807838887,-504.5843309,0.0002018,4]
[351833792,1738807838897,-510.19624305,0.0002018,4]
[351833795,1738807838907,-509.70163689,0.0002018,4]
[351833796,1738807838915,-507.91573231,0.0002018,4]
[351833798,1738807838925,-512.26057198,0.0002018,4]
[351833800,1738807838935,-505.26378108,0.0002018,4]
[351833802,1738807838944,-520.05758573,0.0002018,4]
[351833804,1738807838953,-506.69278425,0.0002018,4]
[351833806,1738807838963,-516.67627278,0.0002018,4]
[351833808,1738807838973,-509.2847278,0.0002018,4]
[351833810,1738807838983,-500.0,0.0002018,4]
[351833812,1738807838992,-510.97650462,0.0002018,4]
[351833814,1738807839002,-521.10010648,0.0002018,4]
[351833816,1738807839012,-526.31590391,0.0002018,4]
[351833818,1738807839023,-503.38175722,0.0002018,4]
[351833820,1738807839032,-504.33240458,0.0002018,4]
[351833822,1738807839042,-515.28179741,0.0002018,4]
[351833824,1738807839051,-519.61691118,0.0002018,4]
[351833826,1738807839060,-500.0,0.0002018,4]
[351833828,1738807839070,-511.83722483,0.0002018,4]
[351833830,1738807839080,-320.723376,0.0002018,4]
[351833832,1738807839090,-514.68463431,0.0002018,4]
[351833834,1738807839099,-621.63539802,0.0002018,4]
[351833836,1738807839109,-180.2571036,0.0002018,4]
[351833838,1738807839122,-508.18414383,0.0002018,4]
[351833840,1738807839131,-500.0,0.0002018,4]
[351833842,1738807839141,-255.94058017,0.0002018,4]
[351833844,1738807839151,-503.34238413,0.0002018,4]
[351833846,1738807839165,-512.18052655,0.0002018,4]
[351833849,1738807839175,-456.43966884,0.0002018,4]
[351833850,1738807839185,-508.52590799,0.0002018,4]
[351833852,1738807839195,-500.0,0.0002018,4]
[351833854,1738807839204,-508.34095714,0.0002018,4]
[351833856,1738807839214,-511.10701944,0.0002018,4]
[351833858,1738807839223,-500.0,0.0002018,4]
[351833860,1738807839233,-510.63809402,0.0002018,4]
[351833862,1738807839243,-500.0,0.0002018,4]
[351833864,1738807839252,-504.16295357,0.0002018,4]
[351833866,1738807839261,-500.0,0.0002018,4]
[351833868,1738807839270,-558.5932904,0.0002018,4]
[351833870,1738807839280,-502.11123393,0.0002018,4]
[351833871,1738807839289,-624.98730632,0.0002018,4]
[351833874,1738807839301,-523.24480607,0.0002018,4]
[351833876,1738807839311,-500.0,0.0002018,4]
[351833878,1738807839320,-500.0,0.0002018,4]
[351833880,1738807839330,-273.24178116,0.0002018,4]
[351833882,1738807839340,-335.29083517,0.0002018,4]
[351833884,1738807839349,-500.0,0.0002018,4]
[351833886,1738807839359,-500.0,0.0002018,4]
[351833888,1738807839369,-502.07354474,0.0002018,4]
[351833890,1738807839378,-501.34036707,0.0002018,4]
[351833892,1738807839387,-534.41599199,0.0002018,4]
[351833894,1738807839398,-514.22714301,0.0002018,4]
[351833896,1738807839407,-500.0,0.0002018,4]
[351833898,1738807839416,-500.0,0.0002018,4]
[351833900,1738807839425,-500.0,0.0002018,4]
[351833902,1738807839435,-500.0,0.0002018,4]
[351833904,1738807839444,-511.72303753,0.0002018,4]
[351833905,1738807839454,-500.0,0.0002018,4]
[351833908,1738807839464,-500.0,0.0002018,4]
[351833910,1738807839474,-493.04992498,0.0002018,4]
[351833911,1738807839484,-500.0,0.0002018,4]
[351833914,1738807839493,-255.60996055,0.0002018,4]
[351833916,1738807839503,-500.0,0.0002018,4]
[351833918,1738807839513,-500.0,0.0002018,4]
[351833920,1738807839524,-518.477746,0.0002018,4]
[351833922,1738807839534,-500.0,0.0002018,4]
[351833924,1738807839543,-500.0,0.0002018,4]
[351833926,1738807839553,-500.0,0.0002018,4]
[351833928,1738807839563,-500.74326766,0.0002018,4]
[351833930,1738807839572,-500.0,0.0002018,4]
[351833932,1738807839581,-235.02161614,0.0002018,4]
[351833933,1738807839590,-538.14655595,0.0002018,4]
[351833935,1738807839600,-500.0,0.0002018,4]
[351833937,1738807839609,-500.0,0.0002018,4]
[351833939,1738807839618,-307.21444551,0.0002018,4]
[351833946,1738807839761,-509.14008062,0.0002018,4]
[351833947,1738807839771,-500.0,0.0002018,4]
[351833948,1738807839780,-500.0,0.0002018,4]
[351833949,1738807839791,-500.0,0.0002018,4]
[351833950,1738807839799,-311.04660095,0.0002018,4]
[351833953,1738807839809,-527.96639667,0.0002018,4]
[351833955,1738807839818,-611.22875841,0.0002018,4]
[351833956,1738807839827,-1020.80537368,0.0002018,4]
[351833957,1738807839836,-522.96782706,0.0002018,4]
[351833959,1738807839845,-265.15161337,0.0002018,4]
[351833960,1738807839854,-500.0,0.0002018,4]
[351833961,1738807839863,-500.0,0.0002018,4]
[351833962,1738807839872,-500.0,0.0002018,4]
[351833963,1738807839881,-500.0,0.0002018,4]
[351833965,1738807839891,-221.13196692,0.0002018,4]
[351833967,1738807839900,-280.02118962,0.0002018,4]
[351833969,1738807839910,-500.0,0.0002018,4]
[351833972,1738807839920,-259.37979992,0.0002018,4]
[351833974,1738807839930,-500.0,0.0002018,4]
[351833976,1738807839939,-500.0,0.0002018,4]
[351833978,1738807839948,-500.0,0.0002018,4]
[351833980,1738807839957,-516.6206363,0.0002018,4]
[351833982,1738807839967,-500.81503348,0.0002018,4]
[351833984,1738807839976,-500.0,0.0002018,4]
[351833986,1738807839986,-500.0,0.0002018,4]
[351833988,1738807839995,-500.0,0.0002018,4]
[351833990,1738807840005,-500.0,0.0002018,4]
[351833992,1738807840015,-554.20903458,0.0002018,4]
[351833993,1738807840024,-500.0,0.0002018,4]